bitfinex-derivatives/quotes_BTCF0:USTF0_20241214
["timestamp","ask_amount","ask_price","bid_price","bid_amount"]
[1734197202288,0.60240262,101340.0,101330.0,0.04932125]
[1734197206494,0.77895916,101340.0,101330.0,0.04932125]
[1734197207386,0.63199354,101340.0,101330.0,0.04932125]
[1734197208493,0.049341,101330.0,101320.0,0.14272226]
[1734197208690,0.5571658,101330.0,101320.0,0.14272226]
[1734197209898,0.5616458,101330.0,101320.0,0.14272226]
[1734197210599,0.5616458,101330.0,101320.0,0.049345]
[1734197212399,0.5616458,101330.0,101320.0,0.14272226]
[1734197213685,1.09900234,101330.0,101320.0,0.14272226]
[1734197215292,0.95197754,101330.0,101320.0,0.14272226]
[1734197216191,1.09918234,101330.0,101320.0,0.14272226]
[1734197216499,0.95197754,101330.0,101320.0,0.14272226]
[1734197216999,0.95311754,101330.0,101320.0,0.14272226]
[1734197217794,0.95311754,101330.0,101320.0,0.18590231]
[1734197221103,0.95311754,101330.0,101320.0,0.09252505]
[1734197221490,1.10034946,101330.0,101320.0,0.09252505]
[1734197221692,1.10034946,101330.0,101320.0,0.18590231]
[1734197223304,1.10037697,101330.0,101320.0,0.18590231]
[1734197223503,0.92382043,101330.0,101320.0,0.14272226]
[1734197224201,1.10037697,101330.0,101320.0,0.14272226]
[1734197224599,1.10037697,101330.0,101320.0,0.049345]
[1734197225303,1.10037697,101330.0,101320.0,0.11070723]
[1734197225503,1.10037697,101330.0,101320.0,0.15388728]
[1734197225905,1.10037697,101330.0,101320.0,0.11070723]
[1734197226414,1.10037697,101330.0,101320.0,0.15388728]
[1734197226608,0.95311754,101330.0,101320.0,0.15388728]
[1734197228000,1.01447977,101330.0,101320.0,0.04318005]
[1734197228503,0.90377654,101330.0,101310.0,0.28042981]
[1734197228806,0.54297654,101330.0,101320.0,0.17207046]
[1734197228998,0.15309852,101330.0,101320.0,0.21525295]
[1734197229804,0.51389852,101330.0,101320.0,0.15389072]
[1734197230200,0.73979606,101330.0,101320.0,0.15389072]
[1734197230408,0.65367977,101330.0,101320.0,0.09252849]
[1734197230601,0.59231754,101330.0,101320.0,0.15389072]
[1734197232296,0.63791754,101330.0,101320.0,0.15389072]
[1734197233309,0.63791754,101330.0,101320.0,0.09252849]
[1734197233610,0.63791754,101330.0,101320.0,0.1860351]
[1734197234602,0.63791754,101330.0,101320.0,0.14285261]
[1734197236612,0.54297654,101330.0,101320.0,0.14285261]
[1734197237407,0.51399916,101330.0,101320.0,0.14285261]
[1734197238517,0.51399916,101330.0,101320.0,0.1860351]
[1734197241116,0.51399916,101330.0,101320.0,0.09252849]
[1734197241510,0.51399916,101330.0,101320.0,0.1860351]
[1734197243011,0.15319916,101330.0,101320.0,0.14285261]
[1734197243412,0.00562,101330.0,101320.0,0.14285261]
[1734197243812,0.00562,101330.0,101320.0,0.50757261]
[1734197243813,0.12364602,101330.0,101320.0,0.50757261]
[1734197245419,0.12364602,101330.0,101320.0,0.86837261]
[1734197247612,0.21209128,101330.0,101320.0,0.86837261]
[1734197248016,0.50837916,101340.0,101330.0,0.049341]
[1734197248017,0.62640518,101340.0,101330.0,0.049341]
[1734197248212,0.47882602,101340.0,101330.0,0.3300301]
[1734197249413,0.47913602,101340.0,101330.0,0.3300301]
[1734197252412,0.11833602,101340.0,101330.0,0.3448701]
[1734197252613,0.00031,101340.0,101330.0,0.7056701]
[1734197253217,0.11809703,101350.0,101340.0,0.049336]
[1734197253428,0.11809703,101350.0,101340.0,0.27953171]
[1734197253616,7.101e-05,101350.0,101340.0,0.64033171]
[1734197254717,1.6e-07,101370.0,101340.0,1.29556756]
[1734197254924,0.0966,101410.0,101360.0,0.18701322]
[1734197255125,0.4574,101410.0,101400.0,0.049307]
[1734197255321,0.55090661,101410.0,101400.0,0.049307]
[1734197255725,0.4574,101410.0,101400.0,0.049307]
[1734197255936,0.4574,101410.0,101390.0,0.22635371]
[1734197256120,0.41708472,101400.0,101390.0,0.22635371]
[1734197256323,0.4079,101400.0,101390.0,0.31986032]
[1734197256520,0.0471,101400.0,101390.0,0.14281661]
[1734197258827,0.0471,101400.0,101390.0,0.50361661]
[1734197264241,0.0476,101400.0,101390.0,0.50361661]
[1734197265327,0.0471,101400.0,101390.0,0.50361661]
[1734197266240,0.0476,101400.0,101390.0,0.50361661]
[1734197266739,0.0476,101400.0,101390.0,0.04931]
[1734197267434,0.0471,101400.0,101390.0,0.14281661]
[1734197268237,0.0476,101400.0,101390.0,0.14281661]
[1734197269339,0.0471,101400.0,101390.0,0.14281661]
[1734197272931,0.757207,101400.0,101390.0,0.04931]
[1734197273133,0.85071361,101400.0,101370.0,9.12e-05]
[1734197273439,0.410117,101380.0,101370.0,0.0494112]
[1734197276348,0.458917,101380.0,101370.0,0.0494112]
[1734197278244,0.4096,101380.0,101370.0,0.0494112]
[1734197278544,0.4096,101380.0,101370.0,0.14291781]
[1734197278956,0.458917,101380.0,101370.0,0.14291781]
[1734197279838,0.3608,101380.0,101370.0,0.14291781]
[1734197280038,0.506613,101390.0,101380.0,0.049317]
[1734197282746,0.049317,101380.0,101370.0,0.0494112]
[1734197282939,0.457717,101380.0,101370.0,0.0494112]
[1734197285143,0.60475477,101380.0,101370.0,0.0494112]
[1734197285543,0.457717,101380.0,101370.0,0.0494112]
[1734197288948,0.457717,101380.0,101350.0,1.2173174]
[1734197288949,0.99835258,101380.0,101350.0,0.23647762]
[1734197289252,0.410127,101360.0,101350.0,0.049331]
[1734197289848,0.55143361,101360.0,101350.0,0.049331]
[1734197291246,0.457927,101360.0,101350.0,0.049331]
[1734197300449,0.66191794,101370.0,101350.0,0.14283761]
[1734197300750,0.51488017,101370.0,101360.0,0.049327]
[1734197302056,0.66191794,101370.0,101360.0,0.049327]
[1734197304259,0.66191794,101370.0,101360.0,0.22637071]
[1734197306450,0.75542455,101370.0,101360.0,0.17704371]
[1734197306652,0.049326,101360.0,101350.0,0.049331]
[1734197306853,0.69652305,101360.0,101350.0,0.049331]
[1734197312158,0.049331,101350.0,101330.0,0.81310199]
[1734197312457,0.4657372,101340.0,101330.0,0.62638271]
[1734197312655,0.456736,101340.0,101330.0,0.62638271]
[1734197314058,0.55024261,101340.0,101330.0,0.62638271]
[1734197314561,0.815158,101340.0,101330.0,0.49251738]
[1734197314765,0.815158,101340.0,101330.0,0.66956109]
[1734197315254,0.815158,101340.0,101330.0,0.449339]
[1734197315756,0.72165139,101340.0,101330.0,0.62638271]
[1734197316474,0.72165139,101340.0,101330.0,0.449339]
[1734197317060,0.815158,101340.0,101330.0,0.62638271]
[1734197317257,0.815158,101340.0,101330.0,0.57704371]
[1734197317453,0.69743235,101340.0,101330.0,0.4]
[1734197317652,1.05823235,101340.0,101330.0,0.4]
[1734197318459,1.06826123,101340.0,101330.0,0.4]
[1734197318968,1.06826123,101340.0,101330.0,0.449341]
[1734197319461,0.97475462,101340.0,101330.0,0.449341]
[1734197323367,1.09243684,101340.0,101330.0,0.449341]
[1734197324869,0.57441822,101340.0,101330.0,0.449341]
[1734197325367,0.9669585,101340.0,101330.0,0.4]
[1734197325568,0.81976876,101340.0,101330.0,0.4]
[1734197325774,0.72626215,101340.0,101330.0,0.4]
[1734197326267,0.81976876,101340.0,101330.0,0.4]
[1734197326476,0.9667757,101340.0,101330.0,0.4]
[1734197326676,0.87326909,101340.0,101330.0,0.4]
[1734197326971,0.81976876,101340.0,101330.0,0.4]
[1734197327568,0.96673363,101340.0,101330.0,0.4]
[1734197328870,1.26673363,101340.0,101330.0,0.4]
[1734197329067,0.96673363,101340.0,101330.0,0.4]
[1734197329262,0.96673363,101340.0,101320.0,9.133e-05]
[1734197329468,0.72565108,101330.0,101320.0,9.133e-05]
[1734197329777,0.71675974,101330.0,101320.0,9.133e-05]
[1734197332870,0.62325313,101330.0,101320.0,9.133e-05]
[1734197335468,0.721518,101330.0,101320.0,9.133e-05]
[1734197335870,0.7313168,101330.0,101320.0,9.133e-05]
[1734197337276,0.61380467,101330.0,101320.0,9.133e-05]
[1734197337967,0.70731128,101330.0,101320.0,9.133e-05]
[1734197340667,0.88323971,101330.0,101320.0,9.133e-05]
[1734197340870,0.70748423,101330.0,101320.0,9.133e-05]
[1734197341175,0.73627484,101330.0,101320.0,9.133e-05]
[1734197345773,0.049351,101310.0,101300.0,0.76958697]
[1734197346075,0.67512408,101310.0,101300.0,0.72639871]
[1734197346273,0.76863069,101310.0,101300.0,0.72639871]
[1734197346478,0.65086488,101310.0,101300.0,0.7700905]
[1734197347381,0.65086488,101310.0,101300.0,0.59254679]
[1734197347573,0.65086488,101310.0,101300.0,0.7695905]
[1734197347973,0.55735827,101310.0,101300.0,0.7695905]
[1734197348880,0.55735827,101310.0,101300.0,0.59254679]
[1734197349084,0.55735827,101310.0,101300.0,0.7695905]
[1734197349475,0.55735827,101310.0,101300.0,0.59254679]
[1734197350581,0.55735827,101310.0,101300.0,0.7695905]
[1734197350883,0.6751049,101310.0,101300.0,0.7695905]
[1734197351080,0.52789763,101310.0,101300.0,0.7695905]
[1734197353281,0.6751049,101310.0,101300.0,0.7695905]
[1734197353490,0.6751049,101310.0,101300.0,0.7700905]
[1734197354380,0.6751049,101310.0,101300.0,0.7695905]
[1734197355289,0.6751049,101310.0,101300.0,1.00564878]
[1734197355588,0.55735827,101310.0,101300.0,1.00614878]
[1734197356086,0.19655827,101310.0,101300.0,0.92261168]
[1734197356290,0.31439613,101310.0,101300.0,1.18809961]
[1734197356482,0.67519613,101310.0,101300.0,1.094093]
[1734197357477,0.67519821,101310.0,101300.0,0.91720507]
[1734197358490,0.67519821,101310.0,101300.0,0.91670507]
[1734197359490,0.67519821,101310.0,101300.0,0.91720507]
[1734197360787,0.60115827,101310.0,101300.0,0.59304679]
[1734197361182,0.66255241,101310.0,101300.0,0.59304679]
[1734197364479,0.66255241,101310.0,101300.0,0.59254679]
[1734197364684,0.66255241,101310.0,101300.0,0.549355]
[1734197365290,0.66255241,101310.0,101300.0,0.59254602]
[1734197366386,0.66255241,101310.0,101300.0,0.8286043]
[1734197367591,0.66255241,101310.0,101300.0,0.78541328]
[1734197368395,0.83920113,101310.0,101300.0,0.78541328]
[1734197369486,0.79055386,101310.0,101300.0,0.01279116]
[1734197369690,0.79055386,101310.0,101260.0,0.87621463]
[1734197369691,0.0399,101280.0,101260.0,0.29599535]
[1734197369889,0.0399,101280.0,101250.0,0.77041893]
[1734197369890,0.049375,101260.0,101250.0,0.00148]
[1734197370088,0.70980383,101260.0,101250.0,0.01691307]
[1734197370490,0.53296328,101260.0,101250.0,0.01691307]
[1734197370688,0.41029258,101260.0,101250.0,0.00148]
[1734197370887,0.53728843,101260.0,101250.0,0.11225414]
[1734197371094,0.17648843,101260.0,101250.0,0.59161417]
[1734197371393,0.14711451,101260.0,101250.0,0.16942003]
[1734197371599,0.31400112,101260.0,101250.0,0.16942003]
[1734197372491,0.11762919,101260.0,101250.0,0.16942003]
[1734197372692,0.11762919,101260.0,101250.0,0.05086]
[1734197373701,0.20567642,101260.0,101250.0,0.5052772]
[1734197373896,0.08816481,101260.0,101250.0,0.5052772]
[1734197374604,0.08816481,101260.0,101250.0,0.8052772]
[1734197374996,0.00011758,101260.0,101250.0,0.5052772]
[1734197375202,0.00011758,101260.0,101250.0,0.8052772]
[1734197375398,0.00011758,101260.0,101250.0,0.5057772]
[1734197377606,0.00011758,101260.0,101250.0,0.41216]
[1734197377807,0.00011758,101260.0,101250.0,0.5057772]
[1734197379094,0.00011758,101260.0,101250.0,0.51571089]
[1734197379594,0.00011758,101260.0,101250.0,0.63427092]
[1734197379905,0.00011758,101260.0,101250.0,0.51571089]
[1734197380500,5.8e-07,101260.0,101250.0,1.18063089]
[1734197380693,5.8e-07,101260.0,101250.0,0.81571089]
[1734197380897,5.8e-07,101260.0,101250.0,0.51571089]
[1734197381607,5.8e-07,101260.0,101250.0,0.72209369]
[1734197381808,5.8e-07,101260.0,101250.0,0.81571089]
[1734197382103,5.8e-07,101260.0,101250.0,0.63427092]
[1734197382498,5.8e-07,101260.0,101250.0,0.81571089]
[1734197383812,5.8e-07,101260.0,101250.0,0.93427092]
[1734197385018,5.8e-07,101260.0,101250.0,0.54065372]
[1734197385820,5.8e-07,101260.0,101250.0,0.56007799]
[1734197386212,5.8e-07,101260.0,101250.0,0.65369519]
[1734197388821,5.8e-07,101260.0,101250.0,0.65221519]
[1734197389519,5.8e-07,101260.0,101250.0,0.44003796]
[1734197389729,0.08804781,101260.0,101250.0,0.43010427]
[1734197390317,0.08804781,101260.0,101250.0,0.41068]
[1734197391027,0.20555942,101260.0,101250.0,0.41068]
[1734197391616,0.11751219,101260.0,101250.0,0.41068]
[1734197392211,0.20555698,101260.0,101250.0,0.04988]
[1734197392414,0.71892632,101260.0,101250.0,0.04988]
[1734197392623,0.65078971,101260.0,101250.0,0.0005]
[1734197392931,0.65078971,101260.0,101240.0,0.049381]
[1734197392932,0.76696363,101260.0,101240.0,0.049381]
[1734197393121,0.67999827,101250.0,101240.0,0.049381]
[1734197393317,0.55394053,101250.0,101240.0,0.049381]
[1734197393517,0.31052723,101250.0,101240.0,0.049381]
[1734197393722,0.72070723,101250.0,101240.0,0.049381]
[1734197393923,0.60332053,101250.0,101240.0,0.049381]
[1734197394226,0.72070322,101250.0,101240.0,0.049381]
[1734197394425,0.72070322,101250.0,101240.0,0.049881]
[1734197394629,0.60332053,101250.0,101240.0,0.049881]
[1734197395522,0.60332053,101250.0,101240.0,0.049381]
[1734197396530,0.55394053,101250.0,101240.0,0.049881]
[1734197397424,0.55394053,101250.0,101240.0,0.049381]
[1734197398325,0.64755773,101250.0,101240.0,0.049381]
[1734197398521,0.87330858,101250.0,101240.0,0.049881]
[1734197398837,0.72656805,101250.0,101240.0,0.049881]
[1734197399530,0.72656805,101250.0,101240.0,0.049381]
[1734197400842,0.0464,101250.0,101240.0,0.049381]
[1734197401136,0.36971769,101250.0,101240.0,0.410181]
[1734197401333,0.19334684,101250.0,101240.0,0.410181]
[1734197401726,0.14694684,101250.0,101240.0,0.5037982]
[1734197401933,0.14694684,101250.0,101240.0,0.5476982]
[1734197402132,0.14694684,101250.0,101240.0,0.6431982]
[1734197402437,0.26448578,101250.0,101240.0,0.549581]
[1734197403237,0.14694684,101250.0,101240.0,0.549581]
[1734197403534,0.26448932,101250.0,101240.0,0.6431982]
[1734197404227,0.14694684,101250.0,101240.0,0.6431982]
[1734197404424,0.14694684,101250.0,101240.0,0.549581]
[1734197404630,0.26447976,101250.0,101240.0,0.76175823]
[1734197406233,0.11753292,101250.0,101240.0,0.6431982]
[1734197407427,0.20567324,101250.0,101240.0,0.6431982]
[1734197408336,0.08814032,101250.0,101240.0,0.6431982]
[1734197409436,0.08814032,101250.0,101240.0,0.65298388]
[1734197410439,0.08814032,101250.0,101240.0,0.95298388]
[1734197411339,3.2e-07,101250.0,101240.0,0.95298388]
[1734197411644,3.2e-07,101250.0,101240.0,0.96782388]
[1734197411840,3.2e-07,101250.0,101240.0,0.66782388]
[1734197414241,3.2e-07,101250.0,101240.0,0.77154391]
[1734197414436,0.11753324,101250.0,101240.0,0.77154391]
[1734197414836,3.2e-07,101250.0,101240.0,0.77154391]
[1734197416849,3.2e-07,101250.0,101240.0,0.790824]
[1734197417452,3.2e-07,101250.0,101240.0,1.090824]
[1734197417954,3.2e-07,101250.0,101240.0,0.790824]
[1734197419244,0.1175335,101260.0,101240.0,0.790824]
[1734197419445,0.1175335,101260.0,101250.0,0.5037972]
[1734197422253,0.26448034,101260.0,101250.0,0.5037972]
[1734197422454,0.1175335,101260.0,101250.0,0.5037972]
[1734197423446,0.26448034,101260.0,101250.0,0.5037972]
[1734197423641,0.1175335,101260.0,101250.0,0.5037972]
[1734197425555,0.26448034,101260.0,101250.0,0.5037972]
[1734197429256,0.26448034,101260.0,101250.0,0.47161217]
[1734197429557,0.14694742,101260.0,101250.0,0.47161217]
[1734197430656,0.14694742,101260.0,101250.0,0.41018]
[1734197430858,0.14694742,101260.0,101250.0,0.47161217]
[1734197431055,0.24504742,101260.0,101250.0,0.47161217]
[1734197435359,0.42141827,101260.0,101250.0,0.47161217]
[1734197435558,0.24504742,101260.0,101250.0,0.47161217]
[1734197436358,0.42141827,101260.0,101250.0,0.47161217]
[1734197442870,0.32331827,101260.0,101250.0,0.47161217]
[1734197443176,0.32331827,101260.0,101250.0,0.5901722]
[1734197443358,0.14694742,101260.0,101250.0,0.5901722]
[1734197444967,0.14694742,101260.0,101250.0,0.65160437]
[1734197445162,0.14694742,101260.0,101250.0,0.5901722]
[1734197446174,0.14694742,101260.0,101250.0,0.2293722]
[1734197446175,0.32331827,101260.0,101250.0,0.2293722]
[1734197446367,0.32331827,101260.0,101250.0,0.5901722]
[1734197446766,0.17637143,101260.0,101250.0,0.5901722]
[1734197447068,0.22916698,101260.0,101250.0,0.5901722]
[1734197449286,0.17637143,101260.0,101250.0,0.5901722]
[1734197449474,0.22916254,101260.0,101250.0,0.5901722]
[1734197449674,0.22916254,101260.0,101250.0,0.61029758]
[1734197450077,0.17637143,101260.0,101250.0,0.61029758]
[1734197450377,0.22921484,101260.0,101250.0,0.61029758]
[1734197450577,0.32358963,101260.0,101250.0,0.61029758]
[1734197450786,0.14721878,101260.0,101250.0,0.61029758]
[1734197455383,0.14721878,101260.0,101250.0,0.24949758]
[1734197455581,0.14721878,101260.0,101250.0,0.61029758]
[1734197456087,0.14721878,101260.0,101250.0,0.54886541]
[1734197456381,0.14721878,101260.0,101250.0,0.61029758]
[1734197457082,0.14721878,101260.0,101250.0,0.54886541]
[1734197457278,0.14721878,101260.0,101250.0,0.61029758]
[1734197457884,0.32358963,101260.0,101250.0,0.61029758]
[1734197459182,0.14721878,101260.0,101250.0,0.61029758]
[1734197461681,0.32358963,101260.0,101250.0,0.61029758]
[1734197461988,0.32358963,101260.0,101250.0,0.24949758]
[1734197462376,0.68438963,101260.0,101250.0,0.24949758]
[1734197463283,0.53717143,101260.0,101250.0,0.24949758]
[1734197464482,0.53717143,101260.0,101250.0,0.29270683]
[1734197465194,0.53717143,101260.0,101250.0,0.23127466]
[1734197465394,0.53717143,101260.0,101250.0,0.29270683]
[1734197465788,0.6937036,101260.0,101250.0,0.09258925]
[1734197466184,0.6937036,101260.0,101250.0,0.04938]
[1734197467392,0.6937036,101260.0,101250.0,0.09258925]
[1734197467393,0.51733275,101260.0,101250.0,0.09258925]
[1734197467899,0.51733275,101260.0,101250.0,0.09259174]
[1734197467900,0.56670775,101260.0,101250.0,0.09259174]
[1734197468088,0.56670775,101260.0,101250.0,0.04938]
[1734197468596,0.62813992,101260.0,101240.0,0.35804952]
[1734197468799,0.36985365,101250.0,101240.0,0.4012621]
[1734197469193,0.36985365,101250.0,101240.0,0.4506471]
[1734197469592,0.36985365,101250.0,101240.0,0.4511471]
[1734197469986,0.43128582,101250.0,101240.0,0.4511471]
[1734197470992,0.25480201,101250.0,101240.0,0.46080692]
[1734197471496,0.25480201,101250.0,101240.0,0.41759434]
[1734197471800,0.25480201,101250.0,101240.0,0.46080692]
[1734197471801,0.43128582,101250.0,101240.0,0.46080692]
[1734197472299,0.43119745,101250.0,101240.0,0.46080692]
[1734197473401,0.43119745,101250.0,101240.0,0.41759434]
[1734197473698,0.43119745,101250.0,101240.0,0.41709434]
[1734197473896,0.79199745,101250.0,101240.0,0.05904482]
[1734197474101,0.43119745,101250.0,101240.0,0.05904482]
[1734197474402,0.36974054,101250.0,101240.0,0.12047699]
[1734197475288,0.19325673,101250.0,101240.0,0.05904482]
[1734197475491,0.43117271,101250.0,101240.0,0.1022574]
[1734197475795,0.2546889,101250.0,101240.0,0.05904482]
[1734197475999,0.2546889,101250.0,101240.0,0.1022574]
[1734197476197,0.69439598,101250.0,101240.0,0.049385]
[1734197477408,0.51791217,101250.0,101240.0,0.049385]
[1734197477691,0.81791217,101250.0,101240.0,0.049385]
[1734197478887,0.4071,101250.0,101240.0,0.11081717]
[1734197479195,0.58328367,101250.0,101240.0,0.11081717]
[1734197479793,0.43071795,101250.0,101240.0,0.049385]
[1734197481797,0.79151795,101250.0,101240.0,0.049385]
[1734197485900,0.84089795,101250.0,101240.0,0.049385]
[1734197487600,0.69409584,101250.0,101240.0,0.049385]
[1734197488099,0.64471584,101250.0,101240.0,0.049385]
[1734197490902,0.59841584,101250.0,101240.0,0.049385]
[1734197499819,0.53698367,101250.0,101240.0,0.049385]
[1734197500120,0.53698367,101250.0,101240.0,0.096085]
[1734197500311,0.53698367,101250.0,101240.0,0.57974934]
[1734197500312,0.17618367,101250.0,101240.0,0.57974934]
[1734197500621,0.22813122,101250.0,101240.0,0.57974934]
[1734197500816,0.22813122,101250.0,101240.0,0.51831717]
[1734197501019,0.22813122,101250.0,101240.0,0.57974934]
[1734197501319,0.22813122,101250.0,101240.0,0.51831717]
[1734197502128,0.17618367,101250.0,101240.0,0.57974934]
[1734197502327,0.32323079,101250.0,101240.0,0.57974934]
[1734197502517,0.17618367,101250.0,101240.0,0.57974934]
[1734197502718,0.32322308,101250.0,101240.0,0.57974934]
[1734197503326,0.17618367,101250.0,101240.0,0.57974934]
[1734197503728,0.32321547,101250.0,101240.0,0.57974934]
[1734197504123,0.1470318,101250.0,101240.0,0.57974934]
[1734197505115,0.1470318,101250.0,101240.0,0.58959148]
[1734197505726,0.26462691,101250.0,101240.0,0.58959148]
[1734197505927,0.11759511,101250.0,101240.0,0.58959148]
[1734197507020,0.11759511,101250.0,101240.0,0.22879148]
[1734197507222,0.11759511,101250.0,101240.0,0.95039148]
[1734197508419,0.11759511,101250.0,101240.0,1.06895151]
[1734197512639,0.11759511,101250.0,101240.0,0.94608717]
[1734197512936,0.11759511,101250.0,101240.0,0.88895931]
[1734197514429,0.11759511,101250.0,101240.0,0.97016255]
[1734197523037,0.26512749,101260.0,101240.0,0.97016255]
[1734197523240,0.14753238,101260.0,101250.0,0.47161217]
[1734197523739,0.11795651,101260.0,101250.0,0.47161217]
[1734197524841,0.11745651,101260.0,101250.0,0.53304434]
[1734197525136,0.11745651,101260.0,101250.0,0.64124434]
[1734197525730,0.11745651,101260.0,101250.0,1.00620434]
[1734197526243,0.0005,101270.0,101260.0,0.049375]
[1734197526538,1e-06,101270.0,101260.0,0.64907151]
[1734197526740,0.1470318,101290.0,101260.0,0.74781651]
[1734197527051,0.1470318,101290.0,101280.0,0.53302934]
[1734197527340,0.00011672,101290.0,101280.0,0.53302934]
[1734197531337,0.08807364,101290.0,101280.0,0.53302934]
[1734197533141,0.08807364,101290.0,101280.0,0.58492934]
[1734197534341,0.08807364,101290.0,101280.0,0.59702289]
[1734197534850,0.00011672,101290.0,101280.0,0.59702289]
[1734197538154,0.00011672,101290.0,101280.0,0.71558292]
[1734197539049,0.00011672,101290.0,101280.0,1.07638292]
[1734197539645,0.00061672,101290.0,101280.0,1.07638292]
[1734197540353,0.08857364,101290.0,101280.0,1.07638292]
[1734197541443,0.08857364,101290.0,101280.0,1.09586381]
[1734197542744,0.08857364,101290.0,101280.0,0.90161858]
[1734197542948,0.08857364,101290.0,101270.0,0.04937]
[1734197542949,0.56016881,101290.0,101270.0,0.04937]
[1734197543251,0.465666,101280.0,101260.0,0.52630517]
[1734197543458,0.66032292,101280.0,101260.0,0.52630517]
[1734197543751,0.66032292,101280.0,101270.0,0.06143217]
[1734197544252,0.7193978,101280.0,101270.0,0.06143217]
[1734197544452,0.572366,101280.0,101270.0,0.06143217]
[1734197544754,0.211566,101280.0,101270.0,0.11080217]
[1734197545256,0.211566,101280.0,101270.0,0.04937]
[1734197549457,0.3585978,101280.0,101270.0,0.04937]
[1734197550061,0.211566,101280.0,101270.0,0.04937]
[1734197551451,0.3585978,101280.0,101270.0,0.04937]
[1734197552358,0.81299272,101280.0,101260.0,0.01251761]
[1734197552559,0.5078318,101270.0,101260.0,0.049374]
[1734197552757,0.5078318,101270.0,101260.0,0.16843403]
[1734197553760,0.5078318,101270.0,101260.0,0.16793403]
[1734197554063,0.1470318,101270.0,101260.0,0.16793403]
[1734197554257,0.98917639,101280.0,101260.0,0.21730803]
[1734197554457,0.98917639,101280.0,101260.0,0.098748]
[1734197554659,0.98917639,101280.0,101260.0,0.099248]
[1734197555161,0.89558147,101280.0,101270.0,0.04937]
[1734197556573,0.7193978,101280.0,101270.0,0.04937]
[1734197556960,0.89558147,101280.0,101270.0,0.04937]
[1734197557360,0.7193978,101280.0,101270.0,0.04937]
[1734197557753,0.6700318,101280.0,101270.0,0.04937]
[1734197558066,0.3092318,101280.0,101270.0,0.04937]
[1734197561664,0.6700318,101280.0,101270.0,0.04937]
[1734197561869,0.7193968,101280.0,101270.0,0.04937]
[1734197562071,0.81299172,101280.0,101270.0,0.04937]
[1734197562670,0.7193968,101280.0,101270.0,0.04937]
[1734197563469,0.89558047,101280.0,101270.0,0.04937]
[1734197564081,0.04937,101270.0,101260.0,0.049373]
[1734197564367,0.049375,101260.0,101250.0,0.05085614]
[1734197564565,0.19606992,101260.0,101250.0,0.05085614]
[1734197564764,0.34268611,101260.0,101250.0,0.05085614]
[1734197565973,0.39638611,101260.0,101250.0,0.05085614]
[1734197566175,0.44938611,101260.0,101250.0,0.05085614]
[1734197566771,0.44938611,101260.0,101250.0,0.05135614]
[1734197567872,0.8103053,101260.0,101250.0,0.05085614]
[1734197568671,0.8103053,101260.0,101250.0,0.05135614]
[1734197570567,1.38008389,101260.0,101250.0,0.0005]
[1734197570767,1.13987278,101260.0,101250.0,0.0005]
[1734197570971,1.13987278,101260.0,101230.0,0.415858]
[1734197571166,0.50377992,101240.0,101230.0,0.051018]
[1734197571589,0.66097992,101240.0,101230.0,0.051018]
[1734197571783,0.80759235,101240.0,101230.0,0.051018]
[1734197575568,0.66097992,101240.0,101230.0,0.051018]
[1734197575978,0.66097992,101240.0,101230.0,0.00163]
[1734197576170,0.66097992,101240.0,101230.0,0.05102]
[1734197576568,0.567385,101240.0,101230.0,0.05102]
[1734197577072,0.464585,101240.0,101230.0,0.05102]
[1734197577274,0.464585,101240.0,101230.0,0.16958003]
[1734197577669,0.049385,101240.0,101230.0,0.27508003]
[1734197578471,0.60100735,101250.0,101230.0,0.27508003]
[1734197578671,0.0878112,101240.0,101230.0,0.15652]
[1734197579087,0.0878112,101240.0,101230.0,0.27508003]
[1734197583079,0.0878112,101240.0,101230.0,0.27345003]
[1734197583283,0.14928755,101240.0,101230.0,0.27345003]
[1734197583875,0.14928755,101240.0,101230.0,0.27395003]
[1734197585281,0.14928755,101240.0,101230.0,0.63475003]
[1734197586277,0.26639944,101240.0,101230.0,0.63475003]
[1734197588379,0.17858824,101240.0,101230.0,0.63475003]
[1734197588774,0.2050094,101240.0,101230.0,0.63475003]
[1734197588976,0.26648575,101240.0,101230.0,0.63475003]
[1734197590583,0.17858824,101240.0,101230.0,0.63475003]
[1734197591485,0.17858824,101240.0,101230.0,0.27395003]
[1734197591486,0.32520067,101240.0,101230.0,0.27395003]
[1734197591791,0.20808878,101240.0,101230.0,0.27345003]
[1734197592881,0.20808878,101240.0,101230.0,0.63425003]
[1734197593685,0.14661243,101240.0,101230.0,0.63425003]
[1734197593879,0.26405133,101240.0,101230.0,0.73893721]
[1734197594096,0.1174389,101240.0,101230.0,0.67746086]
[1734197594481,0.1174389,101240.0,101230.0,0.63425003]
[1734197594687,0.26405133,101240.0,101230.0,0.67746086]
[1734197595094,0.1174389,101240.0,101230.0,0.63425003]
[1734197595283,0.1174389,101240.0,101230.0,0.67746086]
[1734197595488,0.14661243,101240.0,101230.0,0.31666086]
[1734197597592,0.14661243,101240.0,101230.0,0.33640501]
[1734197597989,0.14661243,101240.0,101230.0,0.39788136]
[1734197599799,0.14661243,101240.0,101230.0,0.75868136]
[1734197607606,0.14661243,101240.0,101230.0,0.39788136]
[1734197607902,0.14661243,101240.0,101230.0,0.75868136]
[1734197608698,0.14661243,101240.0,101230.0,0.39788136]
[1734197608898,0.3227961,101240.0,101230.0,0.39788136]
[1734197610092,0.38427245,101240.0,101230.0,0.09260083]
[1734197610301,0.65036002,101240.0,101230.0,0.09260083]
[1734197610507,0.75916002,101240.0,101230.0,0.09260083]
[1734197611302,0.69768367,101240.0,101230.0,0.09260083]
[1734197611706,0.75916002,101240.0,101230.0,0.09260083]
[1734197612005,0.75916002,101240.0,101230.0,0.04939]
[1734197612208,0.75916002,101240.0,101230.0,0.09260083]
[1734197613320,0.58888367,101240.0,101230.0,0.15407718]
[1734197613606,0.53698367,101240.0,101230.0,0.15407718]
[1734197614409,0.53698367,101240.0,101230.0,0.11086635]
[1734197616313,0.53698367,101240.0,101230.0,0.04939]
[1734197617313,0.17618367,101240.0,101230.0,0.41019]
[1734197617613,0.22684693,101240.0,101230.0,0.41019]
[1734197618008,0.17618367,101240.0,101230.0,0.41019]
[1734197618606,0.17618367,101240.0,101230.0,0.45340614]
[1734197619105,0.32317389,101240.0,101230.0,0.45340614]
[1734197619605,0.32317389,101240.0,101230.0,0.51488249]
[1734197619812,0.14699022,101240.0,101230.0,0.57966635]
[1734197620011,0.14699022,101240.0,101230.0,0.74144252]
[1734197620403,0.14699022,101240.0,101230.0,0.69822638]
[1734197620609,0.14699022,101240.0,101230.0,0.63675003]
[1734197621113,0.14699022,101240.0,101230.0,0.27595003]
[1734197621312,0.14699022,101240.0,101230.0,0.63675003]
[1734197621506,0.14699022,101240.0,101230.0,0.27595003]
[1734197621920,0.14699022,101240.0,101230.0,0.63675003]
[1734197624125,0.14699022,101240.0,101230.0,0.67996617]
[1734197624906,0.14699022,101240.0,101230.0,0.31916617]
[1734197625118,0.14699022,101240.0,101230.0,0.67996617]